[Event "Titled Tuesday Blitz April 19 Early 2022"]
[White "Kahlert, Thomas"]
[Black "Sharafiev, Azat"]
[WhiteFideId "4625242"]
[BlackFideId "4186214"]
[WhiteElo "2228"]
[BlackElo "2299"]
[Result "1/2-1/2"]
[Round "02"]
[TimeControl "180+1"]
[Date "2022.04.19"]
[WhiteClock "0:00:47"]
[BlackClock "0:00:17"]

1. d4 {[%clk 0:02:59]}  Nf6 {[%clk 0:02:58]} 2. Nf3 {[%clk 0:02:55]}  d5 {[%clk 0:02:55]} 3. c4 {[%clk 0:02:54]}  e6 {[%clk 0:02:51]} 4. Nc3 {[%clk 0:02:53]}  Be7 {[%clk 0:02:50]} 5. Bg5 {[%clk 0:02:47]}  O-O {[%clk 0:02:50]} 6. e3 {[%clk 0:02:44]}  b6 {[%clk 0:02:50]} 7. cxd5 {[%clk 0:02:42]}  Nxd5 {[%clk 0:02:49]} 8. Bxe7 {[%clk 0:02:42]}  Qxe7 {[%clk 0:02:48]} 9. Rc1 {[%clk 0:02:42]}  Nxc3 {[%clk 0:02:45]} 10. Rxc3 {[%clk 0:02:42]}  Bb7 {[%clk 0:02:41]} 11. Be2 {[%clk 0:02:41]}  Rc8 {[%clk 0:02:38]} 12. Qc2 {[%clk 0:02:40]}  c5 {[%clk 0:02:29]} 13. dxc5 {[%clk 0:02:39]}  Na6 {[%clk 0:02:29]} 14. O-O {[%clk 0:02:21]}  Rxc5 {[%clk 0:02:23]} 15. Bxa6 {[%clk 0:02:19]}  Rxc3 {[%clk 0:02:21]} 16. Qxc3 {[%clk 0:02:18]}  Bxa6 {[%clk 0:02:21]} 17. Rc1 {[%clk 0:02:18]}  h6 {[%clk 0:02:16]} 18. a3 {[%clk 0:02:18]}  Rc8 {[%clk 0:02:14]} 19. Qd2 {[%clk 0:02:18]}  Rxc1+ {[%clk 0:02:10]} 20. Qxc1 {[%clk 0:02:18]}  Bb7 {[%clk 0:02:11]} 21. Qc3 {[%clk 0:02:14]}  Qd7 {[%clk 0:02:07]} 22. h3 {[%clk 0:02:13]}  Qd1+ {[%clk 0:02:05]} 23. Ne1 {[%clk 0:02:04]}  Bd5 {[%clk 0:01:56]} 24. Kh2 {[%clk 0:02:02]}  Qe2 {[%clk 0:01:55]} 25. f3 {[%clk 0:01:58]}  g5 {[%clk 0:01:52]} 26. e4 {[%clk 0:01:58]}  Bb7 {[%clk 0:01:52]} 27. Nc2 {[%clk 0:01:54]}  Qb5 {[%clk 0:01:36]} 28. Nd4 {[%clk 0:01:54]}  Qe5+ {[%clk 0:01:35]} 29. Kg1 {[%clk 0:01:53]}  Kh7 {[%clk 0:01:18]} 30. Ne2 {[%clk 0:01:49]}  Qxc3 {[%clk 0:01:18]} 31. Nxc3 {[%clk 0:01:49]}  Kg7 {[%clk 0:01:15]} 32. Kf2 {[%clk 0:01:49]}  f5 {[%clk 0:01:16]} 33. exf5 {[%clk 0:01:48]}  exf5 {[%clk 0:01:17]} 34. g3 {[%clk 0:01:43]}  Kf6 {[%clk 0:01:03]} 35. f4 {[%clk 0:01:43]}  Ke6 {[%clk 0:01:03]} 36. Ke3 {[%clk 0:01:43]}  Bc6 {[%clk 0:01:00]} 37. Kd4 {[%clk 0:01:43]}  Kd6 {[%clk 0:01:00]} 38. h4 {[%clk 0:01:42]}  gxh4 {[%clk 0:00:59]} 39. gxh4 {[%clk 0:01:42]}  a5 {[%clk 0:01:00]} 40. b4 {[%clk 0:01:41]}  Ke6 {[%clk 0:00:54]} 41. bxa5 {[%clk 0:01:31]}  bxa5 {[%clk 0:00:54]} 42. Kc5 {[%clk 0:01:31]}  Bf3 {[%clk 0:00:55]} 43. Nb5 {[%clk 0:01:28]}  Kf6 {[%clk 0:00:43]} 44. Nd4 {[%clk 0:01:28]}  Bd1 {[%clk 0:00:41]} 45. Kd6 {[%clk 0:01:22]}  Kg6 {[%clk 0:00:38]} 46. Ke5 {[%clk 0:01:22]}  Bg4 {[%clk 0:00:38]} 47. Ke6 {[%clk 0:01:10]}  Kh5 {[%clk 0:00:38]} 48. Kf6 {[%clk 0:01:05]}  Kxh4 {[%clk 0:00:26]} 49. Nxf5+ {[%clk 0:01:05]}  Bxf5 {[%clk 0:00:18]} 50. Kxf5 {[%clk 0:01:05]}  Kg3 {[%clk 0:00:19]} 51. a4 {[%clk 0:00:52]}  h5 {[%clk 0:00:18]} 52. Kg5 {[%clk 0:00:52]}  h4 {[%clk 0:00:19]} 53. f5 {[%clk 0:00:52]}  h3 {[%clk 0:00:19]} 54. f6 {[%clk 0:00:53]}  h2 {[%clk 0:00:20]} 55. f7 {[%clk 0:00:53]}  h1=Q {[%clk 0:00:20]} 56. f8=Q {[%clk 0:00:53]}  Qh4+ {[%clk 0:00:20]} 57. Kg6 {[%clk 0:00:52]}  Qg4+ {[%clk 0:00:13]} 58. Kh6 {[%clk 0:00:48]}  Qf4+ {[%clk 0:00:10]} 59. Qxf4+ {[%clk 0:00:47]}  Kxf4 {[%clk 0:00:11]} 60. Kg6 {[%clk 0:00:46]}  Ke4 {[%clk 0:00:12]} 61. Kg5 {[%clk 0:00:45]}  Kd4 {[%clk 0:00:12]} 62. Kf4 {[%clk 0:00:45]}  Kc4 {[%clk 0:00:12]} 63. Ke4 {[%clk 0:00:46]}  Kb4 {[%clk 0:00:13]} 64. Kd3 {[%clk 0:00:46]}  Kxa4 {[%clk 0:00:14]} 65. Kc2 {[%clk 0:00:46]}  Ka3 {[%clk 0:00:14]} 66. Kb1 {[%clk 0:00:47]}  Kb3 {[%clk 0:00:15]} 67. Ka1 {[%clk 0:00:47]}  a4 {[%clk 0:00:15]} 68. Kb1 {[%clk 0:00:47]}  a3 {[%clk 0:00:16]} 69. Ka1 {[%clk 0:00:47]}  a2 {[%clk 0:00:17]} 1/2-1/2


[Site "https://www.chess.com"]

[Event "Titled Tuesday Blitz April 19 Early 2022"]
[White "Kim, Sergey"]
[Black "Ibarra Jerez, Jose Carlos"]
[WhiteFideId "13700570"]
[BlackFideId "2226332"]
[WhiteElo "2577"]
[BlackElo "2626"]
[Result "1-0"]
[Round "02"]
[TimeControl "180+1"]
[Date "2022.04.19"]
[WhiteClock "0:00:26"]
[BlackClock "0:00:03"]

1. d4 {[%clk 0:03:00]}  d6 {[%clk 0:02:58]} 2. c4 {[%clk 0:03:01]}  e5 {[%clk 0:02:57]} 3. Nf3 {[%clk 0:02:59]}  e4 {[%clk 0:02:57]} 4. Ng5 {[%clk 0:02:59]}  f5 {[%clk 0:02:56]} 5. Nc3 {[%clk 0:02:58]}  Be7 {[%clk 0:02:54]} 6. h4 {[%clk 0:02:58]}  Nf6 {[%clk 0:02:49]} 7. Bf4 {[%clk 0:02:57]}  Nh5 {[%clk 0:02:45]} 8. e3 {[%clk 0:02:55]}  Nxf4 {[%clk 0:02:43]} 9. exf4 {[%clk 0:02:55]}  O-O {[%clk 0:02:41]} 10. Qh5 {[%clk 0:02:52]}  h6 {[%clk 0:02:41]} 11. Qg6 {[%clk 0:02:52]}  hxg5 {[%clk 0:02:13]} 12. hxg5 {[%clk 0:02:53]}  Qe8 {[%clk 0:02:13]} 13. Qh7+ {[%clk 0:02:49]}  Kf7 {[%clk 0:02:14]} 14. Nd5 {[%clk 0:02:25]}  Bd8 {[%clk 0:01:33]} 15. Rh6 {[%clk 0:02:15]}  Rg8 {[%clk 0:01:21]} 16. Be2 {[%clk 0:02:03]}  Kf8 {[%clk 0:01:08]} 17. Bh5 {[%clk 0:01:51]}  Qd7 {[%clk 0:01:07]} 18. Rg6 {[%clk 0:01:23]}  Qa4 {[%clk 0:00:39]} 19. Nf6 {[%clk 0:01:07]}  Qb4+ {[%clk 0:00:39]} 20. Kd1 {[%clk 0:01:02]}  Qxc4 {[%clk 0:00:36]} 21. Rc1 {[%clk 0:00:52]}  Qf7 {[%clk 0:00:17]} 22. Rh6 {[%clk 0:00:47]}  Qxa2 {[%clk 0:00:11]} 23. Qg6 {[%clk 0:00:35]}  Qa4+ {[%clk 0:00:09]} 24. Ke1 {[%clk 0:00:33]}  Be6 {[%clk 0:00:09]} 25. Nxg8 {[%clk 0:00:30]}  Bxg8 {[%clk 0:00:09]} 26. Rh8 {[%clk 0:00:29]}  Qb4+ {[%clk 0:00:04]} 27. Kf1 {[%clk 0:00:27]}  Qb3 {[%clk 0:00:03]} 28. Qe8# {[%clk 0:00:26]} 1-0


[Site "https://www.chess.com"]

[Event "Titled Tuesday Blitz April 19 Early 2022"]
[White "Kobo, Ori"]
[Black "Ianov, Viktor"]
[WhiteFideId "2812320"]
[BlackFideId "14102730"]
[WhiteElo "2420"]
[BlackElo "2161"]
[Result "1-0"]
[Round "02"]
[TimeControl "180+1"]
[Date "2022.04.19"]
[WhiteClock "0:00:10"]
[BlackClock "0:00:20"]

1. Nf3 {[%clk 0:03:00]}  d6 {[%clk 0:02:59]} 2. e4 {[%clk 0:02:58]}  g6 {[%clk 0:02:59]} 3. d4 {[%clk 0:02:58]}  Bg7 {[%clk 0:02:59]} 4. Nc3 {[%clk 0:02:59]}  a6 {[%clk 0:02:59]} 5. Be3 {[%clk 0:02:59]}  b5 {[%clk 0:02:58]} 6. Bd3 {[%clk 0:03:00]}  Bb7 {[%clk 0:02:58]} 7. a4 {[%clk 0:02:59]}  b4 {[%clk 0:02:58]} 8. Nb1 {[%clk 0:03:00]}  Nd7 {[%clk 0:02:57]} 9. a5 {[%clk 0:02:57]}  c5 {[%clk 0:02:56]} 10. c3 {[%clk 0:02:58]}  bxc3 {[%clk 0:02:53]} 11. bxc3 {[%clk 0:02:58]}  Ngf6 {[%clk 0:02:53]} 12. Nbd2 {[%clk 0:02:57]}  O-O {[%clk 0:02:52]} 13. O-O {[%clk 0:02:57]}  Qc7 {[%clk 0:02:52]} 14. Qe2 {[%clk 0:02:56]}  e5 {[%clk 0:02:48]} 15. d5 {[%clk 0:02:49]}  h6 {[%clk 0:02:45]} 16. Nc4 {[%clk 0:02:37]}  Ng4 {[%clk 0:02:42]} 17. Bd2 {[%clk 0:02:30]}  Rfb8 {[%clk 0:02:33]} 18. h3 {[%clk 0:02:28]}  Ngf6 {[%clk 0:02:33]} 19. Rfb1 {[%clk 0:02:28]}  Bc8 {[%clk 0:02:31]} 20. Qd1 {[%clk 0:02:16]}  Nh5 {[%clk 0:02:29]} 21. Qa4 {[%clk 0:02:10]}  Nf4 {[%clk 0:02:26]} 22. Bf1 {[%clk 0:02:08]}  Nf6 {[%clk 0:02:19]} 23. Nb6 {[%clk 0:01:47]}  Ra7 {[%clk 0:02:12]} 24. Ra2 {[%clk 0:01:34]}  Bd7 {[%clk 0:02:04]} 25. Qc2 {[%clk 0:01:30]}  Be8 {[%clk 0:01:58]} 26. Rab2 {[%clk 0:01:29]}  g5 {[%clk 0:01:54]} 27. g3 {[%clk 0:01:29]}  Ng6 {[%clk 0:01:53]} 28. Ne1 {[%clk 0:01:25]}  Nd7 {[%clk 0:01:45]} 29. Ng2 {[%clk 0:01:14]}  Rbb7 {[%clk 0:01:39]} 30. Ne3 {[%clk 0:01:11]}  Ne7 {[%clk 0:01:37]} 31. Be2 {[%clk 0:01:08]}  Nf6 {[%clk 0:01:35]} 32. Bd3 {[%clk 0:01:04]}  Bd7 {[%clk 0:01:33]} 33. Kg2 {[%clk 0:01:03]}  Bf8 {[%clk 0:01:28]} 34. Qd1 {[%clk 0:01:03]}  Kg7 {[%clk 0:01:24]} 35. Qe2 {[%clk 0:01:04]}  Bb5 {[%clk 0:01:20]} 36. Bxb5 {[%clk 0:00:56]}  axb5 {[%clk 0:01:20]} 37. Rxb5 {[%clk 0:00:56]}  Nxe4 {[%clk 0:01:18]} 38. Nf5+ {[%clk 0:00:55]}  Nxf5 {[%clk 0:01:17]} 39. Qxe4 {[%clk 0:00:55]}  Ne7 {[%clk 0:01:16]} 40. c4 {[%clk 0:00:56]}  f5 {[%clk 0:01:12]} 41. Qe2 {[%clk 0:00:56]}  Ng6 {[%clk 0:01:11]} 42. Bc3 {[%clk 0:00:56]}  Be7 {[%clk 0:01:10]} 43. Kh2 {[%clk 0:00:54]}  Bf6 {[%clk 0:01:10]} 44. Qc2 {[%clk 0:00:52]}  Ne7 {[%clk 0:01:08]} 45. f4 {[%clk 0:00:51]}  e4 {[%clk 0:00:51]} 46. Bxf6+ {[%clk 0:00:46]}  Kxf6 {[%clk 0:00:51]} 47. Qb2+ {[%clk 0:00:46]}  Kg6 {[%clk 0:00:50]} 48. fxg5 {[%clk 0:00:32]}  hxg5 {[%clk 0:00:49]} 49. h4 {[%clk 0:00:30]}  Rb8 {[%clk 0:00:42]} 50. hxg5 {[%clk 0:00:27]}  Kxg5 {[%clk 0:00:37]} 51. Qd2+ {[%clk 0:00:15]}  Kg6 {[%clk 0:00:35]} 52. Qf4 {[%clk 0:00:14]}  Rh8+ {[%clk 0:00:32]} 53. Kg2 {[%clk 0:00:15]}  Rh5 {[%clk 0:00:30]} 54. Rh1 {[%clk 0:00:13]}  Rxh1 {[%clk 0:00:28]} 55. Kxh1 {[%clk 0:00:14]}  Rxa5 {[%clk 0:00:28]} 56. Rxa5 {[%clk 0:00:14]}  Qxb6 {[%clk 0:00:28]} 57. Rb5 {[%clk 0:00:12]}  Qa6 {[%clk 0:00:28]} 58. Kg2 {[%clk 0:00:09]}  Qa2+ {[%clk 0:00:25]} 59. Kh3 {[%clk 0:00:09]}  Qxc4 {[%clk 0:00:25]} 60. Qxd6+ {[%clk 0:00:09]}  Kf7 {[%clk 0:00:25]} 61. Qe6+ {[%clk 0:00:10]}  Kg7 {[%clk 0:00:22]} 62. Qxe7+ {[%clk 0:00:10]}  Kg6 {[%clk 0:00:22]} 63. Rb6+ {[%clk 0:00:10]}  Kh5 {[%clk 0:00:20]} 64. Qh4# {[%clk 0:00:10]} 1-0


[Site "https://www.chess.com"]

[Event "Titled Tuesday Blitz April 19 Early 2022"]
[White "Koc, Przemyslaw"]
[Black "De Arruda, Leandro Formes"]
[WhiteFideId "1109081"]
[BlackFideId "22722009"]
[WhiteElo "2141"]
[BlackElo "1852"]
[Result "1-0"]
[Round "02"]
[TimeControl "180+1"]
[Date "2022.04.19"]
[WhiteClock "0:01:30"]
[BlackClock "0:00:55"]

1. d4 {[%clk 0:02:57]}  d5 {[%clk 0:02:59]} 2. Nf3 {[%clk 0:02:57]}  Nf6 {[%clk 0:02:59]} 3. e3 {[%clk 0:02:56]}  e6 {[%clk 0:02:59]} 4. Bd3 {[%clk 0:02:56]}  Bd6 {[%clk 0:03:00]} 5. b3 {[%clk 0:02:55]}  Nbd7 {[%clk 0:03:00]} 6. Bb2 {[%clk 0:02:55]}  O-O {[%clk 0:03:00]} 7. O-O {[%clk 0:02:54]}  Ne4 {[%clk 0:03:01]} 8. c4 {[%clk 0:02:48]}  c6 {[%clk 0:03:01]} 9. Nc3 {[%clk 0:02:48]}  f5 {[%clk 0:03:01]} 10. Rc1 {[%clk 0:02:43]}  Qf6 {[%clk 0:03:01]} 11. c5 {[%clk 0:02:41]}  Bc7 {[%clk 0:03:00]} 12. b4 {[%clk 0:02:42]}  g5 {[%clk 0:02:59]} 13. Nd2 {[%clk 0:02:40]}  Qh6 {[%clk 0:02:55]} 14. g3 {[%clk 0:02:37]}  Rf6 {[%clk 0:02:49]} 15. f3 {[%clk 0:02:37]}  Nxg3 {[%clk 0:02:44]} 16. hxg3 {[%clk 0:02:36]}  Bxg3 {[%clk 0:02:45]} 17. Qe2 {[%clk 0:02:34]}  Qh4 {[%clk 0:02:36]} 18. Qg2 {[%clk 0:02:13]}  Rh6 {[%clk 0:02:35]} 19. Rfd1 {[%clk 0:02:05]}  Bh2+ {[%clk 0:02:25]} 20. Kf1 {[%clk 0:02:05]}  g4 {[%clk 0:02:16]} 21. f4 {[%clk 0:02:02]}  Nf6 {[%clk 0:02:09]} 22. Ke2 {[%clk 0:02:02]}  Ne4 {[%clk 0:01:57]} 23. Ncxe4 {[%clk 0:01:55]}  dxe4 {[%clk 0:01:58]} 24. Bc4 {[%clk 0:01:55]}  g3 {[%clk 0:01:56]} 25. Rh1 {[%clk 0:01:50]}  Qg4+ {[%clk 0:01:56]} 26. Ke1 {[%clk 0:01:50]}  Bd7 {[%clk 0:01:43]} 27. Be2 {[%clk 0:01:49]}  Qg6 {[%clk 0:01:43]} 28. Nf1 {[%clk 0:01:46]}  Kf7 {[%clk 0:01:31]} 29. Nxh2 {[%clk 0:01:41]}  gxh2 {[%clk 0:01:28]} 30. Rxh2 {[%clk 0:01:41]}  Qxg2 {[%clk 0:01:13]} 31. Rxg2 {[%clk 0:01:41]}  a5 {[%clk 0:01:07]} 32. b5 {[%clk 0:01:34]}  cxb5 {[%clk 0:01:04]} 33. Kd2 {[%clk 0:01:35]}  b4 {[%clk 0:00:59]} 34. Rcg1 {[%clk 0:01:34]}  Rg6 {[%clk 0:00:58]} 35. Bh5 {[%clk 0:01:33]}  Rg8 {[%clk 0:00:58]} 36. Bxg6+ {[%clk 0:01:31]}  hxg6 {[%clk 0:00:59]} 37. Rh2 {[%clk 0:01:31]}  Bb5 {[%clk 0:00:55]} 38. Rh7+ {[%clk 0:01:30]} 1-0


[Site "https://www.chess.com"]

[Event "Titled Tuesday Blitz April 19 Early 2022"]
[White "Koelle, Tobias"]
[Black "Lopez, Henry"]
[WhiteFideId "16207378"]
[BlackFideId "5203830"]
[WhiteElo "2541"]
[BlackElo "2177"]
[Result "1-0"]
[Round "02"]
[TimeControl "180+1"]
[Date "2022.04.19"]
[WhiteClock "0:02:27"]
[BlackClock "0:00:04"]

1. Nf3 {[%clk 0:03:00]}  c5 {[%clk 0:02:53]} 2. b3 {[%clk 0:03:00]}  Nc6 {[%clk 0:02:51]} 3. Bb2 {[%clk 0:03:00]}  d6 {[%clk 0:02:48]} 4. e3 {[%clk 0:03:00]}  e5 {[%clk 0:02:47]} 5. Nc3 {[%clk 0:02:59]}  Nf6 {[%clk 0:02:47]} 6. d4 {[%clk 0:02:58]}  e4 {[%clk 0:02:36]} 7. Ng5 {[%clk 0:02:57]}  d5 {[%clk 0:02:32]} 8. f3 {[%clk 0:02:46]}  h6 {[%clk 0:02:18]} 9. Nh3 {[%clk 0:02:46]}  cxd4 {[%clk 0:02:07]} 10. exd4 {[%clk 0:02:45]}  Bxh3 {[%clk 0:02:04]} 11. gxh3 {[%clk 0:02:46]}  Qa5 {[%clk 0:01:57]} 12. a3 {[%clk 0:02:42]}  Qb6 {[%clk 0:01:39]} 13. Na4 {[%clk 0:02:40]}  Qc7 {[%clk 0:01:31]} 14. Bg2 {[%clk 0:02:34]}  Bd6 {[%clk 0:01:26]} 15. fxe4 {[%clk 0:02:31]}  dxe4 {[%clk 0:01:19]} 16. Qe2 {[%clk 0:02:28]}  Bxh2 {[%clk 0:00:04]} 17. O-O-O {[%clk 0:02:27]} 1-0


[Site "https://www.chess.com"]

[Event "Titled Tuesday Blitz April 19 Early 2022"]
[White "Kollars, Dmitrij"]
[Black "Samant Aditya S"]
[WhiteFideId "12909572"]
[BlackFideId "35080580"]
[WhiteElo "2584"]
[BlackElo "1916"]
[Result "1/2-1/2"]
[Round "02"]
[TimeControl "180+1"]
[Date "2022.04.19"]
[WhiteClock "0:00:19"]
[BlackClock "0:00:10"]

1. Nf3 {[%clk 0:03:00]}  Nf6 {[%clk 0:02:59]} 2. c4 {[%clk 0:03:00]}  e6 {[%clk 0:02:59]} 3. e3 {[%clk 0:03:00]}  b6 {[%clk 0:02:57]} 4. b3 {[%clk 0:02:59]}  Bb7 {[%clk 0:02:57]} 5. Bb2 {[%clk 0:03:00]}  c5 {[%clk 0:02:54]} 6. Nc3 {[%clk 0:02:59]}  Nc6 {[%clk 0:02:53]} 7. Be2 {[%clk 0:02:58]}  d5 {[%clk 0:02:52]} 8. cxd5 {[%clk 0:02:57]}  exd5 {[%clk 0:02:32]} 9. d4 {[%clk 0:02:57]}  Be7 {[%clk 0:02:24]} 10. O-O {[%clk 0:02:57]}  O-O {[%clk 0:02:23]} 11. Rc1 {[%clk 0:02:57]}  Rc8 {[%clk 0:02:15]} 12. Na4 {[%clk 0:02:37]}  Ne4 {[%clk 0:02:11]} 13. dxc5 {[%clk 0:02:37]}  bxc5 {[%clk 0:02:12]} 14. Nd2 {[%clk 0:02:35]}  Qa5 {[%clk 0:01:53]} 15. Nxe4 {[%clk 0:02:09]}  dxe4 {[%clk 0:01:54]} 16. Qd5 {[%clk 0:02:09]}  Nd4 {[%clk 0:01:28]} 17. Qc4 {[%clk 0:02:10]}  Bd5 {[%clk 0:01:07]} 18. Qa6 {[%clk 0:02:10]}  Nxe2+ {[%clk 0:00:52]} 19. Qxe2 {[%clk 0:02:11]}  Be6 {[%clk 0:00:50]} 20. Bc3 {[%clk 0:01:50]}  Qc7 {[%clk 0:00:49]} 21. Qb2 {[%clk 0:01:41]}  f6 {[%clk 0:00:43]} 22. Bd4 {[%clk 0:01:23]}  Qa5 {[%clk 0:00:35]} 23. Nxc5 {[%clk 0:01:06]}  Bxc5 {[%clk 0:00:27]} 24. Rxc5 {[%clk 0:01:05]}  Rxc5 {[%clk 0:00:24]} 25. b4 {[%clk 0:01:06]}  Qxa2 {[%clk 0:00:15]} 26. Qxa2 {[%clk 0:01:06]}  Bxa2 {[%clk 0:00:16]} 27. Bxc5 {[%clk 0:01:07]}  Rd8 {[%clk 0:00:12]} 28. Bxa7 {[%clk 0:01:05]}  Rd2 {[%clk 0:00:11]} 29. Bd4 {[%clk 0:00:49]}  Bc4 {[%clk 0:00:11]} 30. Rc1 {[%clk 0:00:45]}  Be2 {[%clk 0:00:11]} 31. h3 {[%clk 0:00:37]}  Rd1+ {[%clk 0:00:10]} 32. Rxd1 {[%clk 0:00:38]}  Bxd1 {[%clk 0:00:11]} 33. b5 {[%clk 0:00:39]}  Ba4 {[%clk 0:00:11]} 34. b6 {[%clk 0:00:39]}  Bc6 {[%clk 0:00:12]} 35. Kh2 {[%clk 0:00:33]}  Kf7 {[%clk 0:00:11]} 36. g4 {[%clk 0:00:32]}  g5 {[%clk 0:00:10]} 37. Kg3 {[%clk 0:00:33]}  h6 {[%clk 0:00:10]} 38. h4 {[%clk 0:00:30]}  Ke6 {[%clk 0:00:08]} 39. h5 {[%clk 0:00:28]}  Bb7 {[%clk 0:00:07]} 40. Bc5 {[%clk 0:00:27]}  Kf7 {[%clk 0:00:07]} 41. Bd6 {[%clk 0:00:27]}  Bc6 {[%clk 0:00:07]} 42. Kg2 {[%clk 0:00:25]}  Bb7 {[%clk 0:00:07]} 43. Kf1 {[%clk 0:00:22]}  Bc8 {[%clk 0:00:07]} 44. Ke1 {[%clk 0:00:20]}  Ke8 {[%clk 0:00:08]} 45. f3 {[%clk 0:00:14]}  exf3 {[%clk 0:00:08]} 46. Kf2 {[%clk 0:00:15]}  Bb7 {[%clk 0:00:05]} 47. Bc5 {[%clk 0:00:15]}  Kf7 {[%clk 0:00:06]} 48. Ke1 {[%clk 0:00:15]}  Ke8 {[%clk 0:00:06]} 49. Kd2 {[%clk 0:00:15]}  Kf7 {[%clk 0:00:06]} 50. Kd3 {[%clk 0:00:15]}  Ba6+ {[%clk 0:00:04]} 51. Kd2 {[%clk 0:00:11]}  f2 {[%clk 0:00:05]} 52. b7 {[%clk 0:00:12]}  Bxb7 {[%clk 0:00:04]} 53. Ke2 {[%clk 0:00:12]}  Bf3+ {[%clk 0:00:04]} 54. Kxf2 {[%clk 0:00:12]}  Bxg4 {[%clk 0:00:05]} 55. e4 {[%clk 0:00:13]}  Bxh5 {[%clk 0:00:06]} 56. Ke3 {[%clk 0:00:14]}  Ke6 {[%clk 0:00:06]} 57. Bf8 {[%clk 0:00:14]}  Kf7 {[%clk 0:00:06]} 58. Bxh6 {[%clk 0:00:13]}  Bg4 {[%clk 0:00:02]} 59. Kd4 {[%clk 0:00:13]}  Be6 {[%clk 0:00:02]} 60. Ke3 {[%clk 0:00:13]}  Kg6 {[%clk 0:00:02]} 61. Bf8 {[%clk 0:00:13]}  Kf7 {[%clk 0:00:03]} 62. Bd6 {[%clk 0:00:13]}  Bd7 {[%clk 0:00:04]} 63. Bc7 {[%clk 0:00:13]}  Bc6 {[%clk 0:00:05]} 64. Bd8 {[%clk 0:00:13]}  Ke6 {[%clk 0:00:06]} 65. Kd4 {[%clk 0:00:13]}  Bb7 {[%clk 0:00:06]} 66. Bc7 {[%clk 0:00:13]}  Bc6 {[%clk 0:00:06]} 67. Bd8 {[%clk 0:00:13]}  Be8 {[%clk 0:00:07]} 68. Bc7 {[%clk 0:00:14]}  Bg6 {[%clk 0:00:08]} 69. Bd8 {[%clk 0:00:14]}  g4 {[%clk 0:00:08]} 70. Bc7 {[%clk 0:00:14]}  Be8 {[%clk 0:00:08]} 71. Bg3 {[%clk 0:00:15]}  Bc6 {[%clk 0:00:08]} 72. Bh4 {[%clk 0:00:15]}  f5 {[%clk 0:00:08]} 73. exf5+ {[%clk 0:00:16]}  Kxf5 {[%clk 0:00:09]} 74. Bg3 {[%clk 0:00:17]}  Kg5 {[%clk 0:00:09]} 75. Ke5 {[%clk 0:00:18]}  Bf3 {[%clk 0:00:09]} 76. Bf2 {[%clk 0:00:18]}  Kg6 {[%clk 0:00:10]} 77. Bg3 {[%clk 0:00:19]} 1/2-1/2


[Site "https://www.chess.com"]

[Event "Titled Tuesday Blitz April 19 Early 2022"]
[White "Korchmar, Vasiliy"]
[Black "Pein, Jonathan"]
[WhiteFideId "24131750"]
[BlackFideId "417092"]
[WhiteElo "2370"]
[BlackElo "2140"]
[Result "1-0"]
[Round "02"]
[TimeControl "180+1"]
[Date "2022.04.19"]
[WhiteClock "0:00:16"]
[BlackClock "0:00:13"]

1. d4 {[%clk 0:03:00]}  Nf6 {[%clk 0:02:55]} 2. Bf4 {[%clk 0:03:00]}  d5 {[%clk 0:02:53]} 3. e3 {[%clk 0:03:00]}  c5 {[%clk 0:02:52]} 4. Nf3 {[%clk 0:03:01]}  Bg4 {[%clk 0:02:52]} 5. Nbd2 {[%clk 0:02:58]}  Nbd7 {[%clk 0:02:52]} 6. c3 {[%clk 0:02:55]}  e6 {[%clk 0:02:51]} 7. Qb3 {[%clk 0:02:54]}  Qb6 {[%clk 0:02:51]} 8. Ne5 {[%clk 0:02:54]}  Nxe5 {[%clk 0:02:50]} 9. Bxe5 {[%clk 0:02:48]}  Nd7 {[%clk 0:02:49]} 10. Bb5 {[%clk 0:02:47]}  c4 {[%clk 0:02:43]} 11. Qa4 {[%clk 0:02:42]}  Rd8 {[%clk 0:02:37]} 12. b3 {[%clk 0:02:42]}  f6 {[%clk 0:02:31]} 13. Bg3 {[%clk 0:02:41]}  cxb3 {[%clk 0:02:31]} 14. axb3 {[%clk 0:02:41]}  a6 {[%clk 0:02:30]} 15. Bxd7+ {[%clk 0:02:39]}  Rxd7 {[%clk 0:02:31]} 16. b4 {[%clk 0:02:27]}  h5 {[%clk 0:02:23]} 17. h3 {[%clk 0:02:27]}  Bf5 {[%clk 0:02:22]} 18. Nb3 {[%clk 0:02:27]}  Bd3 {[%clk 0:02:12]} 19. Kd2 {[%clk 0:02:12]}  Bb5 {[%clk 0:02:05]} 20. Qa5 {[%clk 0:02:10]}  Qc6 {[%clk 0:02:00]} 21. Nc5 {[%clk 0:02:10]}  Rd8 {[%clk 0:01:46]} 22. Qc7 {[%clk 0:02:09]}  Rc8 {[%clk 0:01:38]} 23. Qxb7 {[%clk 0:02:03]}  h4 {[%clk 0:01:32]} 24. Bh2 {[%clk 0:02:01]}  Be7 {[%clk 0:01:21]} 25. Qxc6+ {[%clk 0:01:58]}  Rxc6 {[%clk 0:01:22]} 26. Ra3 {[%clk 0:01:54]}  Bxc5 {[%clk 0:01:19]} 27. bxc5 {[%clk 0:01:52]}  O-O {[%clk 0:01:19]} 28. Rha1 {[%clk 0:01:52]}  Kf7 {[%clk 0:01:11]} 29. Bd6 {[%clk 0:01:52]}  Rh8 {[%clk 0:01:07]} 30. Ra5 {[%clk 0:01:52]}  Rh5 {[%clk 0:01:03]} 31. Bf4 {[%clk 0:01:23]}  e5 {[%clk 0:00:58]} 32. Bh2 {[%clk 0:01:19]}  Rf5 {[%clk 0:00:51]} 33. Ke1 {[%clk 0:01:17]}  Rg5 {[%clk 0:00:49]} 34. g4 {[%clk 0:01:17]}  e4 {[%clk 0:00:40]} 35. Rb1 {[%clk 0:01:10]}  f5 {[%clk 0:00:37]} 36. Bf4 {[%clk 0:01:10]}  Rgg6 {[%clk 0:00:37]} 37. g5 {[%clk 0:01:08]}  Rge6 {[%clk 0:00:29]} 38. Rbxb5 {[%clk 0:00:51]}  axb5 {[%clk 0:00:30]} 39. Rxb5 {[%clk 0:00:52]}  Re7 {[%clk 0:00:30]} 40. Ra5 {[%clk 0:00:37]}  Rb7 {[%clk 0:00:28]} 41. Kf1 {[%clk 0:00:36]}  Rb1+ {[%clk 0:00:23]} 42. Kg2 {[%clk 0:00:36]}  Rb3 {[%clk 0:00:22]} 43. Ra7+ {[%clk 0:00:30]}  Kg6 {[%clk 0:00:22]} 44. Be5 {[%clk 0:00:29]}  Kxg5 {[%clk 0:00:21]} 45. Rxg7+ {[%clk 0:00:28]}  Kh6 {[%clk 0:00:20]} 46. Rd7 {[%clk 0:00:22]}  Rxc3 {[%clk 0:00:19]} 47. Rxd5 {[%clk 0:00:22]}  Rg6+ {[%clk 0:00:18]} 48. Kh2 {[%clk 0:00:17]}  Rc2 {[%clk 0:00:18]} 49. Bf4+ {[%clk 0:00:16]}  Kh5 {[%clk 0:00:13]} 50. Rxf5+ {[%clk 0:00:16]} 1-0


[Site "https://www.chess.com"]